bitfinex/quotes_SOLUSD_20250616
["timestamp","ask_amount","ask_price","bid_price","bid_amount"]
[1750084656730,8.74444221,157.53,157.5,7.16]
[1750084657354,8.46011907,157.52,157.5,7.16]
[1750084657570,8.46011907,157.51,157.5,7.16]
[1750084657739,8.74444221,157.51,157.5,7.16]
[1750084657943,0.28432314,157.51,157.5,7.16]
[1750084658941,8.74444221,157.51,157.5,7.16]
[1750084660152,18.933972,157.5,157.42,24.56996445]
[1750084660366,0.28432314,157.45,157.42,23.04026445]
[1750084660661,8.74444221,157.45,157.43,6.35202947]
[1750084661229,0.28432314,157.45,157.43,6.35202947]
[1750084661434,8.74444221,157.45,157.42,13.51230059]
[1750084661997,8.46011907,157.43,157.42,7.16]
[1750084662154,0.28432314,157.45,157.42,7.16]
[1750084662354,18.64964886,157.47,157.42,7.16]
[1750084662355,0.28432314,157.43,157.42,7.16]
[1750084662569,8.74444221,157.43,157.42,7.16]
[1750084662963,18.933972,157.43,157.42,7.16]
[1750084663203,8.74444221,157.43,157.42,7.16]
[1750084663500,8.74444221,157.43,157.38,6.35404752]
[1750084663654,0.28432314,157.41,157.38,6.35404752]
[1750084664261,0.28432314,157.41,157.38,14.81416659]
[1750084664490,0.28432314,157.41,157.38,30.69928541]
[1750084664649,27.5484,157.47,157.4,8.46011907]
[1750084664856,0.28432314,157.45,157.41,8.46011907]
[1750084665172,8.74444221,157.45,157.4,8.46011907]
[1750084665753,8.74444221,157.45,157.4,6.35324015]
[1750084665953,8.74444221,157.45,157.4,14.81335922]
[1750084666153,0.28432314,157.43,157.4,6.35324015]
[1750084666351,0.28432314,157.43,157.4,14.81335922]
[1750084666568,0.28432314,157.43,157.4,6.35324015]
[1750084666768,0.28432314,157.43,157.41,8.46011907]
[1750084667171,0.28432314,157.43,157.4,14.81335922]
[1750084667583,0.28432314,157.43,157.42,8.46011907]
[1750084667774,0.28432314,157.43,157.4,22.23634053]
[1750084667775,0.28432314,157.43,157.41,8.46011907]
[1750084668084,0.28432314,157.43,157.4,15.88310038]
[1750084668085,0.28432314,157.43,157.4,24.34321945]
[1750084668282,0.28432314,157.43,157.38,6.35404752]
[1750084668458,0.28432314,157.43,157.39,8.46011907]
[1750084668980,0.28432314,157.43,157.41,8.46011907]
[1750084669184,0.28432314,157.43,157.38,22.23916634]
[1750084669370,0.28432314,157.43,157.41,8.46011907]
[1750084669782,0.28432314,157.43,157.42,14.81255205]
[1750084670180,3.31235059,157.44,157.42,14.81255205]
[1750084670377,0.14216157,157.47,157.43,8.46011907]
[1750084670578,0.28432314,157.47,157.46,8.46011907]
[1750084670784,0.28432314,157.47,157.42,22.23351543]
[1750084670980,3.59636465,157.47,157.46,8.46011907]
[1750084672473,3.59636465,157.47,157.46,14.81093832]
[1750084672674,3.59636465,157.47,157.46,8.46011907]
[1750084673470,0.28432314,157.47,157.46,8.46011907]
[1750084673690,0.14216157,157.49,157.46,8.46011907]
[1750084673880,24.94967097,157.5,157.48,8.46011907]
[1750084674098,0.28432314,157.49,157.48,8.46011907]
[1750084674399,24.94967097,157.5,157.48,8.46011907]
[1750084674898,0.14216157,157.49,157.45,0.14216157]
[1750084675312,0.28432314,157.49,157.48,8.46011907]
[1750084676402,6.63393263,157.49,157.48,8.46011907]
[1750084677195,6.63393263,157.49,157.43,6.35189582]
[1750084677368,6.63393263,157.49,157.48,8.46011907]
[1750084678975,0.28432314,157.49,157.48,8.46011907]
[1750084679178,24.94967097,157.5,157.48,8.46011907]
[1750084679405,21.63828241,157.5,157.49,8.60228064]
[1750084680200,10.97224792,157.53,157.49,8.60228064]
[1750084680385,10.97224792,157.53,157.52,8.46011907]
[1750084680585,11.25657106,157.53,157.52,8.46011907]
[1750084681375,11.25657106,157.53,157.49,8.46011907]
[1750084681376,0.28432314,157.52,157.49,8.46011907]
[1750084681580,0.28432314,157.52,157.47,6.35041595]
[1750084681872,18.933972,157.52,157.49,8.46011907]
[1750084682589,18.933972,157.52,157.47,6.35041595]
[1750084682792,27.39409107,157.52,157.47,8.46011907]
[1750084682993,18.933972,157.5,157.47,8.46011907]
[1750084684302,18.933972,157.5,157.47,14.81049591]
[1750084684881,18.933972,157.5,157.46,13.51070049]
[1750084685106,18.933972,157.5,157.47,8.46011907]
[1750084685608,18.933972,157.5,157.42,0.14216157]
[1750084685609,0.28432314,157.45,157.4,8.46011907]
[1750084685805,28.42,157.44,157.4,8.46011907]
[1750084685995,28.42,157.44,157.4,14.81322784]
[1750084686800,28.42,157.44,157.4,19.07135978]
[1750084687610,0.28432314,157.43,157.39,19.07176525]
[1750084687782,0.28432314,157.43,157.4,12.71825101]
[1750084687981,0.28432314,157.43,157.4,19.07108831]
[1750084689100,0.28432314,157.43,157.41,12.71825101]
[1750084689308,0.14216157,157.48,157.42,12.71825101]
[1750084689486,0.28432314,157.48,157.45,12.71825101]
[1750084689801,13.00257415,157.48,157.43,12.71825101]
[1750084690002,13.00257415,157.48,157.44,6.35162601]
[1750084690311,0.28432314,157.48,157.44,19.06987702]
[1750084692085,0.28432314,157.48,157.45,12.71825101]
[1750084692694,0.28432314,157.48,157.42,0.14216157]
[1750084693403,18.64964886,157.51,157.47,12.71825101]
[1750084693592,18.64964886,157.51,157.44,26.0]
[1750084693784,0.14216157,157.5,157.49,12.71825101]
[1750084694218,0.14216157,157.5,157.45,6.35122261]
[1750084694413,0.28432314,157.5,157.49,12.71825101]
[1750084694988,10.64178362,157.52,157.49,12.71825101]
[1750084695198,10.64178362,157.52,157.5,12.71825101]
[1750084695519,0.14216157,157.51,157.49,12.71825101]
[1750084695686,0.28432314,157.51,157.49,12.71825101]
[1750084695886,0.28432314,157.51,157.5,12.71825101]
[1750084696088,0.28432314,157.51,157.5,19.06745735]
[1750084696391,0.14216157,157.51,157.5,19.06745735]
[1750084696706,10.64178362,157.52,157.5,19.06745735]
[1750084696902,10.64178362,157.52,157.51,12.71825101]
[1750084697393,10.78394519,157.52,157.51,12.71825101]
[1750084697797,10.92610676,157.52,157.51,12.71825101]
[1750084698014,10.92610676,157.52,157.51,19.06705426]
[1750084698512,10.78394519,157.52,157.51,19.06705426]
[1750084698814,10.92610676,157.52,157.51,19.06705426]
[1750084699117,10.92610676,157.52,157.51,6.34880325]
[1750084699299,0.28432314,157.51,157.49,6.34960949]
[1750084699510,0.28432314,157.51,157.5,12.71825101]
[1750084699722,0.28432314,157.51,157.44,31.75764876]
[1750084699723,18.933972,157.51,157.46,6.35081925]
[1750084699909,0.28432314,157.49,157.46,6.35081925]
[1750084700100,18.933972,157.49,157.46,6.35081925]
[1750084700303,18.933972,157.49,157.46,19.06907026]
[1750084700524,18.933972,157.49,157.47,12.71825101]
[1750084700724,18.933972,157.49,157.46,6.35081925]
[1750084700931,18.933972,157.49,157.47,12.71825101]
[1750084701150,18.933972,157.49,157.46,19.06907026]
[1750084701309,0.28432314,157.49,157.48,12.71825101]
[1750084701732,0.28432314,157.49,157.46,22.22786738]
[1750084701923,0.28432314,157.49,157.46,6.35081925]
[1750084702234,0.28432314,157.49,157.46,12.71825101]
[1750084702629,0.28432314,157.49,157.43,22.23120636]
[1750084702834,0.28432314,157.49,157.46,12.71825101]
[1750084704228,0.28432314,157.49,157.47,6.35041595]
[1750084705144,0.28432314,157.5,157.47,6.35041595]
[1750084705313,0.28432314,157.5,157.48,12.71825101]
[1750084705513,0.14216157,157.5,157.48,12.71825101]
[1750084705932,0.28432314,157.5,157.49,12.71825101]
[1750084706233,0.28432314,157.5,157.48,12.71825101]
[1750084706436,0.28432314,157.5,157.49,6.34960949]
[1750084707231,0.28432314,157.5,157.46,12.71825101]
[1750084707232,18.933972,157.5,157.46,12.71825101]
[1750084708339,18.933972,157.5,157.45,6.35122261]
[1750084708507,18.933972,157.5,157.46,12.71825101]
[1750084708708,18.933972,157.5,157.47,6.35041595]
[1750084709632,31.65222301,157.5,157.47,6.35041595]
[1750084709828,31.65222301,157.5,157.45,6.35122261]
[1750084709829,0.28432314,157.47,157.45,6.35122261]
[1750084711620,0.28432314,157.47,157.44,6.35162601]
[1750084712020,4.73667125,157.5,157.46,12.71825101]
[1750084712212,12.71825101,157.48,157.44,6.35162601]
[1750084712416,13.00257415,157.47,157.44,6.35162601]
[1750084712932,0.28432314,157.47,157.44,6.35162601]
[1750084713148,0.28432314,157.47,157.44,34.94894206]
[1750084713515,0.28432314,157.47,157.46,19.06907026]
[1750084714030,0.14216157,157.5,157.46,19.06907026]
[1750084714413,0.28432314,157.5,157.46,34.94611839]
[1750084714943,13.00257415,157.5,157.46,22.22786738]
[1750084715448,0.28432314,157.5,157.46,34.94611839]
[1750084715752,12.71825101,157.49,157.46,6.35081925]
[1750084715928,0.28432314,157.48,157.46,6.35081925]
[1750084717645,0.28432314,157.48,157.44,28.59727532]
[1750084717958,13.00257415,157.48,157.43,19.07028048]
[1750084718123,13.00257415,157.48,157.43,34.95035416]
[1750084719739,13.00257415,157.48,157.43,22.23210315]
[1750084719959,13.00257415,157.48,157.43,34.95035416]
[1750084720124,13.00257415,157.48,157.43,22.23210315]
[1750084720323,0.28432314,157.46,157.43,34.95035416]
[1750084720837,3.31191996,157.47,157.46,0.14216157]
[1750084721041,11.22675116,157.53,157.51,0.14216157]
[1750084721217,1.6494,157.61,157.51,0.14216157]
[1750084721218,3.30966214,157.55,157.51,24.11542861]
[1750084721427,3.30966214,157.55,157.54,26.0]
[1750084721748,3.30919615,157.6,157.54,34.46663352]
[1750084721956,0.28432314,157.59,157.58,8.46663352]
[1750084722156,0.28432314,157.59,157.54,26.0]
[1750084722334,3.30919615,157.6,157.57,8.46663352]
[1750084722827,3.30919615,157.6,157.57,12.68966029]
[1750084723227,0.28432314,157.59,157.57,12.68966029]
[1750084723452,0.14216157,157.59,157.57,12.68966029]
[1750084723749,0.14216157,157.59,157.55,6.34719136]
[1750084723750,0.28432314,157.59,157.55,6.34719136]
[1750084723953,0.28432314,157.59,157.56,12.68966029]
[1750084724257,0.28432314,157.59,157.55,6.34719136]
[1750084724258,31.62363229,157.59,157.55,6.34719136]
[1750084724426,31.62363229,157.59,157.55,19.03685165]
[1750084725145,18.933972,157.59,157.55,19.03685165]
[1750084725656,31.62363229,157.59,157.55,6.34719136]
[1750084727259,31.62363229,157.59,157.55,19.03685165]
[1750084727433,31.62363229,157.59,157.55,6.34719136]
[1750084727747,0.28432314,157.57,157.55,6.34719136]
[1750084728661,0.28432314,157.57,157.52,6.3484002]
[1750084728662,12.68966029,157.56,157.52,6.3484002]
[1750084728866,12.68966029,157.56,157.52,19.03806049]
[1750084729629,12.68966029,157.55,157.52,6.3484002]
[1750084729831,0.28432314,157.54,157.52,6.3484002]
[1750084730044,12.97398343,157.54,157.52,6.3484002]
[1750084730348,12.97398343,157.54,157.51,7.04]
[1750084730349,12.68966029,157.53,157.51,13.38879332]
[1750084730567,31.62363229,157.52,157.51,7.04]
[1750084730855,6.34719136,157.55,157.54,78.37636771]
[1750084731243,8.70733455,157.55,157.54,78.37636771]
[1750084731741,8.70733455,157.55,157.45,26.0]
[1750084731742,26.0,157.52,157.44,6.35162601]
[1750084731941,12.68966029,157.47,157.44,6.35162601]
[1750084732243,12.68966029,157.48,157.44,19.0412863]
[1750084732753,0.28432314,157.47,157.44,6.35162601]
[1750084733151,12.97398343,157.47,157.44,6.35162601]
[1750084733336,0.28432314,157.45,157.44,6.35162601]
[1750084733531,0.28432314,157.45,157.42,6.35243298]
[1750084734263,12.97398343,157.45,157.42,6.35243298]
[1750084734772,0.28432314,157.43,157.4,13.39317423]
[1750084734937,0.28432314,157.42,157.4,13.39317423]
[1750084735258,0.28432314,157.42,157.4,7.04]
[1750084735445,0.28432314,157.42,157.4,13.39320435]
[1750084736166,12.97398343,157.42,157.4,7.04]
[1750084736466,0.28432314,157.42,157.4,13.39309617]
[1750084737967,12.97398343,157.41,157.4,7.04]
[1750084738843,12.97398343,157.41,157.36,12.68966029]
[1750084739048,0.28432314,157.38,157.35,12.68966029]
[1750084739246,0.28432314,157.38,157.35,6.35525897]
[1750084739862,0.28432314,157.38,157.35,19.04491926]
[1750084740342,12.68966029,157.41,157.35,6.35525897]
[1750084740543,12.68966029,157.44,157.39,12.68966029]
[1750084740871,12.97398343,157.42,157.38,6.35404752]
[1750084741046,0.28432314,157.42,157.38,6.35404752]
[1750084741246,0.28432314,157.42,157.38,19.04370781]
[1750084741671,0.28432314,157.42,157.39,12.68966029]
[1750084741879,0.28432314,157.42,157.38,19.04370781]
[1750084741880,0.14216157,157.42,157.38,19.04370781]
[1750084742266,3.31312198,157.41,157.4,12.68966029]
[1750084742572,0.14216157,157.42,157.39,12.68966029]
[1750084742744,3.45499305,157.42,157.39,12.68966029]
[1750084743086,36.3334,157.49,157.39,12.68966029]
[1750084743087,12.68966029,157.51,157.41,31.87431869]
[1750084743294,2.35817809,157.51,157.48,12.68966029]
[1750084743456,11.06191744,157.52,157.48,12.68966029]
[1750084743773,3.31114823,157.5,157.48,12.68966029]
[1750084743985,0.28432314,157.49,157.48,12.68966029]
[1750084744142,3.31114823,157.5,157.48,12.68966029]
[1750084744344,3.31114823,157.5,157.49,12.68966029]
[1750084744762,11.06191744,157.52,157.49,25.37932058]
[1750084744948,11.06191744,157.52,157.51,45.18062511]
[1750084745161,11.06191744,157.52,157.51,19.03846354]
[1750084745773,3.31007847,157.56,157.51,6.34880325]
[1750084745979,3.31007847,157.56,157.51,19.03846354]
[1750084746188,3.31007847,157.56,157.53,12.68966029]
[1750084746483,0.28432314,157.55,157.54,12.68966029]
[1750084746662,3.31007847,157.56,157.54,12.68966029]
[1750084746867,3.31007847,157.56,157.55,6.34719136]
[1750084747049,3.31007847,157.56,157.55,19.03685165]
[1750084747453,3.31007847,157.56,157.55,6.34719136]
[1750084747899,3.45224004,157.56,157.54,19.03713724]
[1750084748059,0.28432314,157.55,157.54,6.34747695]
[1750084748386,0.28432314,157.55,157.5,0.14216157]
[1750084748387,12.97398343,157.55,157.5,6.34920634]
[1750084748568,12.97398343,157.55,157.5,19.03886663]
[1750084748569,0.28432314,157.55,157.5,19.03886663]
[1750084748762,18.933972,157.55,157.5,6.34920634]
[1750084750063,25.28124764,157.55,157.49,6.34960949]
[1750084750270,0.28432314,157.52,157.49,6.34960949]
[1750084750668,0.28432314,157.51,157.49,6.34960949]
[1750084751100,0.28432314,157.51,157.49,19.03926978]
[1750084751263,0.28432314,157.51,157.49,6.34960949]
[1750084752387,0.28432314,157.51,157.48,13.3499167]
[1750084752699,0.28432314,157.51,157.48,26.03957699]
[1750084753213,0.28432314,157.5,157.48,7.0]
[1750084753390,0.28432314,157.5,157.48,13.34993086]
[1750084754409,12.97398343,157.5,157.44,26.0]
[1750084754612,0.28432314,157.48,157.44,6.35162601]
[1750084754782,0.28432314,157.48,157.44,19.0412863]
[1750084754987,0.28432314,157.48,157.45,12.68966029]
[1750084755788,0.28432314,157.48,157.44,19.0412863]
[1750084756685,12.68966029,157.49,157.44,19.0412863]
[1750084756895,0.28432314,157.48,157.45,12.68966029]
[1750084757894,0.28432314,157.48,157.47,12.68966029]
[1750084758093,31.33930915,157.54,157.47,12.68966029]
[1750084758274,31.33930915,157.54,157.49,12.68966029]
[1750084758483,0.14216157,157.53,157.49,19.03892273]
[1750084758819,0.14216157,157.53,157.44,19.0412863]
[1750084758820,0.14216157,157.49,157.44,19.0412863]
[1750084759123,0.14216157,157.49,157.45,12.68966029]
[1750084759124,0.28432314,157.49,157.45,12.68966029]
[1750084759780,0.28432314,157.49,157.45,19.04060033]
[1750084759982,12.97398343,157.47,157.42,19.04209327]
[1750084760485,0.28432314,157.47,157.45,12.68966029]
[1750084760689,7.90899542,157.61,157.42,22.23351543]
[1750084760690,3.31007847,157.56,157.5,26.0]
[1750084760882,3.31007847,157.56,157.51,7.14216157]
[1750084761211,3.31007847,157.56,157.55,12.68966029]
[1750084761415,3.31007847,157.56,157.51,7.14216157]
[1750084761708,3.31007847,157.56,157.54,12.68966029]
[1750084761884,3.59440161,157.56,157.55,6.34719136]
[1750084762085,3.31007847,157.56,157.55,19.03685165]
[1750084762399,3.59440161,157.56,157.55,19.03685165]
[1750084762578,20.30926029,157.64,157.55,35.04699163]
[1750084762783,6.0385,157.64,157.6,12.68966029]
[1750084763108,18.72816029,157.64,157.55,22.35733134]
[1750084763283,0.28432314,157.62,157.59,12.68966029]
[1750084763484,3.30927189,157.63,157.59,12.68966029]
[1750084763987,3.30927189,157.63,157.6,6.34517766]
[1750084764582,18.64964886,157.62,157.56,6.34678852]
[1750084764807,0.14216157,157.61,157.57,12.68966029]
[1750084765005,0.28432314,157.61,157.57,12.68966029]
[1750084765208,0.28432314,157.61,157.56,6.34678852]
[1750084765405,0.28432314,157.61,157.57,12.68966029]
[1750084765589,0.28432314,157.61,157.58,12.68966029]
[1750084766595,0.28432314,157.61,157.57,6.34602488]
[1750084766794,0.28432314,157.61,157.57,19.03568517]
[1750084767399,0.28432314,157.61,157.58,12.68966029]
[1750084767825,0.28432314,157.61,157.57,19.03568517]
[1750084768115,12.97398343,157.61,157.57,6.34602488]
[1750084768793,12.97398343,157.61,157.56,19.03634801]
[1750084769203,12.97398343,157.58,157.51,23.01353463]
[1750084769507,12.97398343,157.58,157.51,22.87137306]
[1750084769707,12.97398343,157.58,157.53,12.68966029]
[1750084770010,31.67143346,157.63,157.53,12.68966029]
[1750084770011,3.30927189,157.63,157.57,12.68966029]
[1750084770208,3.30927189,157.63,157.6,12.68966029]
[1750084770389,0.14216157,157.62,157.6,12.68966029]
[1750084770596,0.28432314,157.62,157.59,12.68966029]
[1750084770797,0.14216157,157.62,157.55,27.5216]
[1750084770990,0.14216157,157.62,157.59,12.68966029]
[1750084771705,0.28432314,157.62,157.59,12.68966029]
[1750084772102,0.28432314,157.62,157.6,19.03483795]
[1750084772504,3.30927189,157.63,157.61,12.68966029]
[1750084772691,0.14216157,157.62,157.61,12.68966029]
[1750084772892,0.28432314,157.62,157.57,6.34638573]
[1750084773113,0.28432314,157.62,157.58,12.68966029]
[1750084773418,0.28432314,157.62,157.6,12.68966029]
[1750084774124,0.28432314,157.62,157.57,15.86596433]
[1750084774298,0.14216157,157.62,157.61,12.68966029]
[1750084774605,0.28432314,157.62,157.61,12.68966029]
[1750084775216,0.28432314,157.62,157.57,19.08964611]
[1750084775406,0.28432314,157.62,157.61,12.68966029]
[1750084776300,0.28432314,157.62,157.61,6.34477507]
[1750084776711,0.28432314,157.62,157.6,19.03472276]
[1750084777414,0.28432314,157.62,157.6,6.34506247]
[1750084777620,0.28432314,157.62,157.6,19.03472276]
[1750084778016,0.28432314,157.62,157.61,12.68966029]
[1750084779104,0.28432314,157.62,157.6,19.03472276]
[1750084779302,0.28432314,157.62,157.6,12.68966029]
[1750084780312,0.28432314,157.62,157.6,19.03471826]
[1750084780507,0.28432314,157.62,157.61,12.68966029]
[1750084781123,0.28432314,157.62,157.6,6.34505797]
[1750084781423,11.68548343,157.65,157.61,12.68966029]
[1750084781734,11.68548343,157.65,157.64,12.68966029]
[1750084781929,14.99369896,157.65,157.64,19.03322791]
[1750084783039,3.30821553,157.65,157.64,19.03322791]
[1750084785325,0.14216157,157.69,157.64,35.03430853]
[1750084785514,0.14216157,157.71,157.67,12.68966029]
[1750084785727,3.30752318,157.68,157.67,12.68966029]
[1750084785930,0.14216157,157.71,157.67,12.68966029]
[1750084786422,12.97398343,157.71,157.64,22.20248667]
[1750084786740,0.28432314,157.69,157.66,12.68966029]
[1750084787037,0.28432314,157.67,157.64,6.34356762]
[1750084788021,0.28432314,157.67,157.62,6.34437254]
[1750084788221,12.97398343,157.67,157.63,12.68966029]
[1750084788421,0.28432314,157.67,157.63,12.68966029]
[1750084788625,0.28432314,157.67,157.64,12.68966029]
[1750084788839,0.28432314,157.67,157.66,12.68966029]
[1750084789147,0.28432314,157.67,157.62,22.20530389]
[1750084789148,0.14216157,157.67,157.62,22.20530389]
[1750084789330,0.14216157,157.67,157.65,12.68966029]
[1750084789529,0.28432314,157.68,157.65,12.68966029]
[1750084789738,0.28432314,157.68,157.64,12.68966029]
[1750084789934,0.28432314,157.68,157.65,12.68966029]
[1750084790145,0.28432314,157.68,157.66,6.3427629]
[1750084790353,3.30771877,157.7,157.67,12.68966029]
[1750084790560,3.30771877,157.7,157.69,12.68966029]
[1750084791551,21.6328866,157.75,157.69,12.68966029]
[1750084791733,3.30670439,157.72,157.7,12.68966029]
[1750084792055,0.14216157,157.71,157.7,12.68966029]
[1750084792230,0.14216157,157.71,157.7,19.03081438]
[1750084792555,0.28432314,157.71,157.69,19.03113789]
[1750084792740,0.28432314,157.71,157.69,6.3414776]
[1750084792943,0.28432314,157.71,157.67,6.34236062]
[1750084793142,0.28432314,157.71,157.67,19.03202091]
[1750084793654,0.28432314,157.71,157.68,12.68966029]
[1750084794342,0.28432314,157.71,157.68,19.03145178]
[1750084795134,0.28432314,157.71,157.68,6.34179149]
[1750084796028,0.28432314,157.71,157.67,19.03187458]
[1750084796354,0.28432314,157.71,157.68,12.68966029]
[1750084796656,0.28432314,157.71,157.68,19.03133265]
[1750084796828,0.28432314,157.71,157.68,6.34167236]
[1750084797025,12.97398343,157.71,157.67,6.34220247]
[1750084798167,3.30673433,157.72,157.7,12.68966029]
[1750084798329,3.30673433,157.72,157.67,23.74880403]
[1750084798330,3.30673433,157.72,157.71,12.68966029]
[1750084798534,3.30673433,157.72,157.71,19.0304123]
[1750084800358,17.40814728,157.76,157.71,34.88229233]
[1750084800568,17.40814728,157.76,157.75,19.0288045]
[1750084801266,17.40814728,157.76,157.75,6.33914421]
[1750084801438,17.40814728,157.76,157.75,19.0288045]
[1750084802547,17.40814728,157.76,157.7,12.68966029]
[1750084802548,0.28432314,157.75,157.7,12.68966029]
[1750084802736,0.28432314,157.72,157.68,25.91161868]
[1750084804136,0.28432314,157.72,157.69,12.68966029]
[1750084804361,12.68966029,157.75,157.7,12.68966029]
[1750084804559,12.68966029,157.75,157.71,19.03035481]
[1750084804560,0.28432314,157.75,157.71,19.03035481]
[1750084804742,12.68966029,157.74,157.69,12.68966029]
[1750084805060,12.68966029,157.74,157.69,19.03106152]
[1750084805247,31.62363229,157.75,157.7,12.68966029]
[1750084805749,12.97398343,157.75,157.71,12.68966029]
[1750084806561,12.97398343,157.75,157.7,12.68966029]
[1750084806738,0.28432314,157.73,157.69,34.88495206]
[1750084807057,0.28432314,157.73,157.7,12.68966029]
[1750084808446,0.28432314,157.73,157.69,22.19529177]
[1750084808649,0.28432314,157.73,157.69,6.34140123]
[1750084808850,0.28432314,157.73,157.69,19.03106152]
[1750084809241,0.28432314,157.74,157.7,12.68966029]
[1750084809462,0.28432314,157.74,157.69,6.34140123]
[1750084809664,0.28432314,157.74,157.7,12.68966029]
[1750084810250,0.28432314,157.72,157.69,6.34140123]
[1750084810566,12.68966029,157.73,157.69,6.34140123]
[1750084810567,0.28432314,157.71,157.69,6.34140123]
[1750084810763,0.28432314,157.71,157.69,19.03106152]
[1750084811071,0.28432314,157.74,157.7,12.68966029]
[1750084811266,12.97398343,157.74,157.69,6.34140123]
[1750084811446,12.97398343,157.74,157.69,19.03106152]
[1750084811789,0.28432314,157.71,157.69,6.34140123]
[1750084812654,0.28432314,157.71,157.68,13.22181517]
[1750084812840,12.97398343,157.69,157.68,6.88]
[1750084813340,0.28432314,157.69,157.68,6.88]
[1750084813542,12.97398343,157.69,157.68,6.88]
[1750084814556,0.28432314,157.69,157.68,13.22195839]
[1750084815656,0.28432314,157.69,157.68,6.88]
[1750084815977,12.97398343,157.69,157.68,6.88]
[1750084817269,0.28432314,157.69,157.67,6.342287]
[1750084818757,12.68966029,157.68,157.62,13.1088]
[1750084818960,0.28432314,157.66,157.63,19.03363034]
[1750084819766,0.28432314,157.66,157.63,6.34397005]
[1750084819967,0.28432314,157.66,157.63,19.03363034]
[1750084820472,0.28432314,157.66,157.64,12.68966029]
[1750084820861,0.28432314,157.66,157.63,6.34397005]
[1750084821170,0.28432314,157.66,157.65,12.68966029]
[1750084821476,3.30826755,157.67,157.64,12.68966029]
[1750084821662,3.30826755,157.67,157.62,25.91400059]
[1750084821663,0.28432314,157.66,157.62,25.91400059]
[1750084821968,0.28432314,157.64,157.62,6.88]
[1750084822169,15.99792784,157.67,157.62,25.91400824]
[1750084822371,0.28432314,157.66,157.63,12.68966029]
[1750084822680,3.30826755,157.67,157.62,13.22434795]
[1750084822681,3.30826755,157.67,157.65,12.68966029]
[1750084822858,3.59259069,157.67,157.66,12.68966029]
[1750084823053,3.59259069,157.67,157.66,19.03242319]
[1750084823250,3.59259069,157.67,157.66,6.3427629]
[1750084824578,0.28432314,157.7,157.66,22.19967016]
[1750084824754,0.28432314,157.7,157.67,12.68966029]
[1750084824955,0.28432314,157.7,157.68,6.34195839]
[1750084825280,0.14216157,157.7,157.68,6.34195839]
[1750084825452,0.28432314,157.68,157.64,12.68966029]
[1750084825656,12.97398343,157.69,157.64,12.68966029]
[1750084826074,12.97398343,157.69,157.63,22.20327538]
[1750084826277,0.28432314,157.64,157.61,13.22441572]
[1750084826573,0.28432314,157.64,157.57,22.74504365]
[1750084826749,12.68966029,157.61,157.57,22.74504365]
[1750084826950,0.28432314,157.6,157.58,6.34598299]
[1750084828954,21.01833006,157.63,157.58,6.34598299]
[1750084828955,12.97265254,157.62,157.58,6.34598299]
[1750084829361,0.28432314,157.6,157.58,6.34598299]
[1750084829566,12.97265254,157.6,157.57,13.2263029]
[1750084829764,0.28432314,157.6,157.57,13.2263029]
[1750084829960,0.28432314,157.6,157.57,25.9146323]
[1750084830188,0.28432314,157.6,157.57,13.2263029]
[1750084831654,0.28432314,157.62,157.57,13.2263029]
[1750084831983,0.28432314,157.6,157.57,13.2263029]
[1750084832155,0.28432314,157.6,157.57,25.9146323]
[1750084832881,0.28432314,157.6,157.57,13.2263029]
[1750084833061,12.97265254,157.6,157.57,6.88]
[1750084833374,12.6883294,157.58,157.57,6.88]
[1750084834680,12.97265254,157.58,157.54,6.3475077]
[1750084834882,0.28432314,157.55,157.54,6.3475077]
[1750084836063,0.28432314,157.55,157.53,6.34773938]
[1750084837674,0.28432314,157.53,157.5,6.34920634]
[1750084838165,12.97265254,157.51,157.49,6.82]
[1750084838493,0.28432314,157.51,157.49,25.85779381]
[1750084838860,0.28432314,157.51,157.49,13.16946441]
[1750084839095,12.97265254,157.51,157.49,6.82]
[1750084839391,12.97265254,157.51,157.49,13.16959365]
[1750084839765,12.97265254,157.51,157.49,6.82]
[1750084839766,12.6883294,157.5,157.49,6.82]
[1750084839960,0.28432314,157.49,157.43,81.65918014]
[1750084840153,0.28432314,157.46,157.43,81.65918014]
[1750084840355,0.28432314,157.46,157.44,6.35162601]
[1750084842492,12.6883294,157.48,157.44,6.35162601]
[1750084842493,0.28432314,157.47,157.44,6.35162601]
[1750084842859,8.2328,157.53,157.46,12.6883294]
[1750084843065,8.2328,157.53,157.49,12.6883294]
[1750084843066,12.6883294,157.53,157.49,12.6883294]
[1750084843275,12.6883294,157.52,157.47,12.6883294]
[1750084844491,12.6883294,157.52,157.48,6.3500127]
[1750084844492,0.14216157,157.51,157.48,6.3500127]
[1750084844803,0.28432314,157.51,157.49,12.6883294]
[1750084844966,10.42877802,157.57,157.5,12.6883294]
[1750084845161,13.73898133,157.57,157.54,12.6883294]
[1750084846070,10.42877802,157.57,157.51,26.0]
[1750084846479,10.42877802,157.57,157.52,22.2194007]
[1750084846787,10.42877802,157.57,157.52,34.9077301]
[1750084846788,0.14216157,157.56,157.52,34.9077301]
[1750084846970,0.28432314,157.56,157.53,12.6883294]
[1750084848487,0.28432314,157.56,157.54,6.34759426]
[1750084849091,0.28432314,157.56,157.54,19.03592366]